fUST/lending_fUST_20250618
["ID","MTS","AMOUNT","RATE_DAILY","PERIOD"]
[366289866,1750176644317,-1333.9,0.00024109,6]
[366289867,1750176644327,-343.61081315,0.00024109,6]
[366289869,1750176644337,-460.0,0.00024109,6]
[366289871,1750176644347,-460.0,0.00024109,6]
[366289873,1750176644357,-1441.24,0.00024109,6]
[366289875,1750176644367,-460.0,0.00024109,6]
[366289877,1750176644377,-460.0,0.00024109,6]
[366289879,1750176644387,-460.0,0.00024109,6]
[366289881,1750176644397,-1158.18,0.00024109,6]
[366289883,1750176644407,-460.0,0.00024109,6]
[366289885,1750176644416,-460.0,0.00024109,6]
[366289887,1750176644426,-460.0,0.00024109,6]
[366289889,1750176644438,-460.0,0.00024109,6]
[366289891,1750176644447,-522.07,0.00024109,6]
[366289893,1750176644457,-460.0,0.00024109,6]
[366289895,1750176644467,-460.0,0.00024109,6]
[366289897,1750176644477,-460.0,0.00024109,6]
[366289899,1750176644487,-460.0,0.00024109,6]
[366289901,1750176644497,-460.0,0.00024109,6]
[366289903,1750176644507,-460.0,0.00024109,6]
[366289905,1750176644519,-460.0,0.00024109,6]
[366289907,1750176644530,-371.82347606,0.00024109,6]
[366289909,1750176644540,-460.0,0.00024109,6]
[366289911,1750176644551,-401.85675123,0.00024109,6]
[366289913,1750176644561,-1048.96,0.00024109,6]
[366289915,1750176644571,-460.0,0.00024109,6]
[366289917,1750176644580,-847.93,0.00024109,6]
[366289919,1750176644591,-460.0,0.00024109,6]
[366289921,1750176644601,-460.0,0.00024109,6]
[366289923,1750176644610,-991.14,0.00024109,6]
[366289925,1750176644619,-460.0,0.00024109,6]
[366289927,1750176644629,-460.0,0.00024109,6]
[366289929,1750176644639,-7010.16,0.00024109,6]
[366289931,1750176644648,-370.35426321,0.00024109,6]
[366289933,1750176644658,-4831.2,0.00024109,6]
[366289935,1750176644669,-460.0,0.00024109,6]
[366289937,1750176644679,-460.0,0.00024109,6]
[366289939,1750176644692,-460.0,0.00024109,6]
[366289941,1750176644701,-277.98287863,0.00024109,6]
[366289943,1750176644710,-460.0,0.00024109,6]
[366289945,1750176644721,-460.0,0.00024109,6]
[366289947,1750176644731,-460.0,0.00024109,6]
[366289949,1750176644741,-536.81,0.00024109,6]
[366289951,1750176644750,-460.0,0.00024109,6]
[366289953,1750176644760,-804.57,0.00024109,6]
[366289955,1750176644770,-460.0,0.00024109,6]
[366289957,1750176644780,-460.0,0.00024109,6]
[366289959,1750176644790,-460.0,0.00024109,6]
[366289961,1750176644800,-460.0,0.00024109,6]
[366289963,1750176644810,-395.65287359,0.00024109,6]
[366289965,1750176644819,-460.0,0.00024109,6]
[366289967,1750176644829,-460.0,0.00024109,6]
[366289968,1750176644839,-460.14472562,0.00024109,6]
[366289970,1750176644849,-460.0,0.00024109,6]
[366289973,1750176644859,-8795.9,0.00024109,6]
[366289974,1750176644870,-445.44567713,0.00024109,6]
[366289976,1750176644880,-460.0,0.00024109,6]
[366289979,1750176644890,-1878.55,0.00024109,6]
[366289981,1750176644899,-1374.86,0.00024109,6]
[366289983,1750176644908,-460.0,0.00024109,6]
[366289985,1750176644917,-1006.22,0.00024109,6]
[366289987,1750176644925,-460.0,0.00024109,6]
[366289989,1750176644932,-8875.12,0.00024109,6]
[366289991,1750176644942,-460.0,0.00024109,6]
[366289993,1750176644950,-460.0,0.00024109,6]
[366289995,1750176644958,-460.0,0.00024109,6]
[366289997,1750176644966,-1205.63,0.00024109,6]
[366289998,1750176644974,-2849.04,0.00024109,6]
[366290000,1750176644981,-460.0,0.00024109,6]
[366290002,1750176644990,-568.97,0.00024109,6]
[366290004,1750176644999,-481.25,0.00024109,6]
[366290006,1750176645007,-257.42543081,0.00024109,6]
[366290008,1750176645015,-972.97,0.00024109,6]
[366290010,1750176645024,-460.0,0.00024109,6]
[366290012,1750176645033,-576.75080527,0.00024109,6]
[366290014,1750176645043,-460.0,0.00024109,6]
[366290016,1750176645053,-1834.37,0.00024109,6]
[366290018,1750176645062,-1659.52,0.00024109,6]
[366290020,1750176645072,-460.0,0.00024109,6]
[366290022,1750176645082,-460.0,0.00024109,6]
[366290024,1750176645091,-460.0,0.00024109,6]
[366290026,1750176645101,-460.0,0.00024109,6]
[366290028,1750176645110,-460.0,0.00024109,6]
[366290030,1750176645119,-460.0,0.00024109,6]
[366290032,1750176645129,-460.0,0.00024109,6]
[366290034,1750176645138,-460.0,0.00024109,6]
[366290036,1750176645148,-460.0,0.00024109,6]
[366290038,1750176645157,-2430.68,0.00024109,6]
[366290040,1750176645167,-1365.49,0.00024109,6]
[366290042,1750176645177,-680.3,0.00024109,6]
[366290044,1750176645186,-460.0,0.00024109,6]
[366290046,1750176645196,-460.0,0.00024109,6]
[366290048,1750176645206,-1080.8,0.00024109,6]
[366290050,1750176645215,-460.0,0.00024109,6]
[366290052,1750176645224,-468.87,0.00024109,6]
[366290054,1750176645234,-460.0,0.00024109,6]
[366290056,1750176645244,-3313.92,0.00024109,6]
[366290058,1750176645253,-460.0,0.00024109,6]
[366290060,1750176645263,-460.0,0.00024109,6]
[366290062,1750176645273,-4717.08,0.00024109,6]
[366290064,1750176645282,-460.0,0.00024109,6]
[366290066,1750176645292,-460.0,0.00024109,6]
[366290068,1750176645302,-1552.73,0.00024109,6]
[366290070,1750176645312,-460.0,0.00024109,6]
[366290071,1750176645321,-9386.28,0.00024109,6]
[366290073,1750176645331,-460.0,0.00024109,6]
[366290075,1750176645340,-709.73,0.00024109,6]
[366290077,1750176645350,-1606.42,0.00024109,6]
[366290079,1750176645360,-2719.42,0.00024109,6]
[366290081,1750176645370,-460.0,0.00024109,6]
[366290083,1750176645381,-460.0,0.00024109,6]
[366290085,1750176645392,-460.0,0.00024109,6]
[366290087,1750176645405,-6688.93,0.00024109,6]
[366290089,1750176645415,-460.0,0.00024109,6]
[366290091,1750176645426,-361.29407006,0.00024109,6]
[366290093,1750176645439,-460.0,0.00024109,6]
[366290095,1750176645452,-460.0,0.00024109,6]
[366290097,1750176645463,-460.0,0.00024109,6]
[366290099,1750176645473,-460.0,0.00024109,6]
[366290101,1750176645486,-460.0,0.00024109,6]
[366290103,1750176645497,-300.0,0.00024109,6]
[366290105,1750176645507,-853.3,0.00024109,6]
[366290107,1750176645518,-460.0,0.00024109,6]
[366290109,1750176645528,-460.0,0.00024109,6]
[366290111,1750176645538,-442.03588551,0.00024109,6]
[366290113,1750176645548,-460.0,0.00024109,6]
[366290115,1750176645558,-1000.61,0.00024109,6]
[366290116,1750176645567,-539.36,0.00024109,6]
[366290118,1750176645577,-709.76,0.00024109,6]
[366290120,1750176645587,-460.0,0.00024109,6]
[366290122,1750176645597,-461.61508851,0.00024109,6]
[366290124,1750176645607,-460.0,0.00024109,6]
[366290126,1750176645617,-2380.4,0.00024109,6]
[366290128,1750176645630,-605.91,0.00024109,6]
[366290130,1750176645640,-460.0,0.00024109,6]
[366290132,1750176645651,-460.0,0.00024109,6]
[366290134,1750176645661,-1383.57,0.00024109,6]
[366290136,1750176645671,-402.68832397,0.00024109,6]
[366290138,1750176645681,-460.0,0.00024109,6]
[366290140,1750176645699,-364.86192728,0.00024109,6]
[366290142,1750176645710,-460.0,0.00024109,6]
[366290144,1750176645720,-460.0,0.00024109,6]
[366290146,1750176645731,-1881.41,0.00024109,6]
[366290148,1750176645742,-460.0,0.00024109,6]
[366290150,1750176645752,-460.0,0.00024109,6]
[366290152,1750176645762,-460.0,0.00024109,6]
[366290154,1750176645773,-460.0,0.00024109,6]
[366290156,1750176645783,-537.84961724,0.00024109,6]
[366290158,1750176645794,-423.13740274,0.00024109,6]
[366290160,1750176645805,-1663.93,0.00024109,6]
[366290162,1750176645815,-460.0,0.00024109,6]
[366290164,1750176645824,-460.0,0.00024109,6]
[366290166,1750176645834,-10432.73,0.00024109,6]
[366290168,1750176645844,-460.0,0.00024109,6]
[366290170,1750176645854,-466.24,0.00024109,6]
[366290172,1750176645863,-2125.97,0.00024109,2]
[366290174,1750176645873,-994.58,0.00024109,6]
[366290176,1750176645882,-506.09528701,0.00024109,6]
[366290178,1750176645892,-460.0,0.00024109,6]
[366290180,1750176645901,-460.0,0.00024109,6]
[366290182,1750176645914,-460.0,0.00024109,6]
[366290184,1750176645924,-263.80068983,0.00024109,6]
[366290186,1750176645933,-460.0,0.00024109,6]
[366290188,1750176645948,-460.0,0.00024109,6]
[366290189,1750176645958,-460.0,0.00024109,6]
[366290191,1750176645968,-460.0,0.00024109,6]
[366290193,1750176645978,-460.0,0.00024109,6]
[366290195,1750176645988,-9782.59,0.00024109,6]
[366290197,1750176645997,-801.42,0.00024109,6]
[366290199,1750176646007,-2018.76,0.00024109,6]
[366290201,1750176646017,-460.0,0.00024109,6]
[366290203,1750176646026,-1258.96,0.00024109,6]
[366290205,1750176646036,-500.0,0.00024109,2]
[366290207,1750176646045,-500.0,0.00024109,2]
[366290209,1750176646054,-500.0,0.00024109,2]
[366290211,1750176646064,-500.0,0.00024109,2]
[366290213,1750176646074,-507.60319211,0.00024109,2]
[366290215,1750176646083,-460.0,0.00024109,6]
[366290217,1750176646093,-460.0,0.00024109,6]
[366290219,1750176646102,-408.01880777,0.00024109,6]
[366290221,1750176646113,-558.94,0.00024109,6]
[366290223,1750176646123,-4191.39,0.00024109,6]
[366290225,1750176646132,-460.0,0.00024109,6]
[366290227,1750176646142,-460.0,0.00024109,6]
[366290229,1750176646151,-334.96244374,0.00024109,6]
[366290231,1750176646160,-539.95755019,0.00024109,6]
[366290243,1750176646309,-700.01,0.00024109,6]
[366290244,1750176646319,-460.0,0.00024109,6]
[366290245,1750176646329,-1195.37,0.00024109,6]
[366290246,1750176646338,-460.0,0.00024109,6]
[366290247,1750176646348,-1856.28,0.00024109,6]
[366290248,1750176646357,-493.03451443,0.00024109,6]
[366290249,1750176646366,-460.0,0.00024109,6]
[366290250,1750176646375,-460.0,0.00024109,6]
[366290251,1750176646386,-7032.2,0.00024109,6]
[366290252,1750176646395,-407.74457464,0.00024109,6]
[366290253,1750176646404,-457.03104692,0.00024109,6]
[366290254,1750176646413,-3137.14,0.00024109,6]
[366290255,1750176646423,-373.89349763,0.00024109,6]
[366290256,1750176646432,-3760.16,0.00024109,6]
[366290257,1750176646445,-218.15013796,0.00024109,6]
[366290258,1750176646455,-460.0,0.00024109,6]
[366290259,1750176646464,-460.0,0.00024109,6]
[366290260,1750176646474,-460.0,0.00024109,6]
[366290261,1750176646484,-460.0,0.00024109,6]
[366290262,1750176646493,-460.0,0.00024109,6]
[366290263,1750176646502,-460.0,0.00024109,6]
[366290264,1750176646512,-691.54,0.00024109,6]
[366290265,1750176646521,-460.0,0.00024109,6]
[366290266,1750176646531,-7407.3,0.00024109,6]
[366290267,1750176646541,-200.819809,0.00024136,7]
[366290268,1750176646550,-200.819809,0.00024136,7]
[366290269,1750176646559,-151.0,0.00024136,7]
[366290270,1750176646568,-151.0,0.00024136,7]
[366290271,1750176646578,-340.0,0.00024136,6]
[366290272,1750176646588,-460.0,0.00024136,6]
[366290273,1750176646598,-370.81391833,0.00024136,6]
[366290275,1750176646608,-349.2439411,0.00024136,6]
[366290276,1750176646618,-460.0,0.00024136,6]
[366290277,1750176646627,-527.6179036,0.00024136,6]
[366290278,1750176646637,-460.0,0.00024136,6]
[366290279,1750176646646,-460.0,0.00024136,6]
[366290280,1750176646657,-460.0,0.00024136,6]
[366290281,1750176646666,-460.0,0.00024136,6]
[366290282,1750176646676,-288.47230282,0.00024136,6]
[366290283,1750176646686,-392.16805472,0.00024136,6]
[366290284,1750176646705,-460.0,0.00024136,6]
[366290286,1750176646715,-320.13221385,0.00024136,6]
[366290288,1750176646725,-460.0,0.00024136,6]
[366290290,1750176646735,-460.0,0.00024136,6]
[366290292,1750176646745,-460.0,0.00024136,6]
[366290294,1750176646755,-460.0,0.00024136,6]
[366290296,1750176646765,-460.0,0.00024136,6]
[366290298,1750176646777,-400.0,0.00024136,6]
[366290300,1750176646787,-460.0,0.00024136,6]
[366290302,1750176646797,-460.0,0.00024136,6]
[366290304,1750176646807,-460.0,0.00024136,6]
[366290306,1750176646817,-460.0,0.00024136,6]
[366290308,1750176646826,-460.0,0.00024136,6]
[366290310,1750176646836,-460.0,0.00024136,6]
[366290312,1750176646846,-460.0,0.00024136,6]
[366290314,1750176646855,-460.0,0.00024136,6]
[366290316,1750176646866,-460.880334,0.00024136,6]
[366290318,1750176646876,-460.0,0.00024136,6]
[366290320,1750176646886,-460.0,0.00024136,6]
[366290322,1750176646896,-460.0,0.00024136,6]
[366290324,1750176646906,-460.0,0.00024136,6]
[366290326,1750176646915,-281.0757923,0.00024136,6]
[366290328,1750176646925,-460.0,0.00024136,6]
[366290330,1750176646934,-460.0,0.00024136,6]
[366290332,1750176646949,-460.0,0.00024136,6]
[366290335,1750176646960,-460.0,0.00024136,6]
[366290337,1750176646970,-460.0,0.00024136,6]
[366290338,1750176646980,-334.91994067,0.00024136,6]
[366290340,1750176646990,-460.0,0.00024136,6]
[366290343,1750176647000,-460.0,0.00024136,6]
[366290344,1750176647009,-460.0,0.00024136,6]
[366290346,1750176647019,-460.0,0.00024136,6]
[366290348,1750176647029,-266.04458361,0.00024136,6]
[366290350,1750176647038,-256.12177441,0.00024136,6]
[366290352,1750176647048,-460.0,0.00024136,6]
[366290354,1750176647058,-460.0,0.00024136,6]
[366290356,1750176647068,-460.0,0.00024136,6]
[366290358,1750176647078,-553.13,0.00024136,6]
[366290360,1750176647088,-460.0,0.00024136,6]
[366290363,1750176647099,-460.0,0.00024136,6]
[366290365,1750176647110,-410.96682637,0.00024136,6]
[366290367,1750176647120,-466.17,0.00024136,6]
[366290369,1750176647131,-430.0,0.00024136,6]
[366290371,1750176647141,-460.0,0.00024136,6]
[366290373,1750176647151,-868.02,0.00024136,6]
[366290374,1750176647161,-460.0,0.00024136,6]
[366290376,1750176647171,-460.0,0.00024136,6]
[366290378,1750176647180,-460.0,0.00024136,6]
[366290380,1750176647195,-535.24,0.00024136,6]
[366290383,1750176647205,-411.02982276,0.00024136,6]
[366290385,1750176647216,-460.0,0.00024136,6]
[366290387,1750176647228,-1238.45,0.00024136,6]
[366290389,1750176647238,-460.0,0.00024136,6]
[366290391,1750176647248,-460.0,0.00024136,6]
[366290393,1750176647259,-460.0,0.00024136,6]
[366290395,1750176647269,-460.0,0.00024136,6]
[366290397,1750176647281,-460.0,0.00024136,6]
[366290399,1750176647292,-460.0,0.00024136,6]
[366290401,1750176647303,-460.0,0.00024136,6]
[366290403,1750176647313,-304.88633613,0.00024136,6]
[366290405,1750176647323,-1441.56,0.00024136,2]
[366290407,1750176647333,-460.0,0.00024136,6]
[366290409,1750176647343,-431.95614544,0.00024136,6]
[366290411,1750176647353,-460.0,0.00024136,6]
[366290413,1750176647363,-1453.46,0.00024136,6]
[366290415,1750176647373,-460.0,0.00024136,6]
[366290417,1750176647383,-465.27856495,0.00024136,6]
[366290419,1750176647392,-460.0,0.00024136,6]
[366290421,1750176647402,-460.0,0.00024136,6]
[366290423,1750176647412,-460.0,0.00024136,6]
[366290425,1750176647422,-460.0,0.00024136,6]
[366290427,1750176647431,-460.0,0.00024136,6]
[366290428,1750176647443,-410.0,0.00024136,6]
[366290430,1750176647453,-460.0,0.00024136,6]
[366290433,1750176647466,-385.51949107,0.00024136,6]
[366290435,1750176647482,-460.0,0.00024136,6]
[366290436,1750176647492,-460.0,0.00024136,6]
[366290438,1750176647502,-460.0,0.00024136,6]
[366290440,1750176647512,-559.28,0.00024136,6]
[366290442,1750176647522,-460.0,0.00024136,6]
[366290444,1750176647531,-460.0,0.00024136,6]
[366290446,1750176647541,-1065.51,0.00024136,6]
[366290448,1750176647550,-460.0,0.00024136,6]
[366290450,1750176647560,-352.58164501,0.00024136,6]
[366290452,1750176647570,-460.0,0.00024136,6]
[366290454,1750176647579,-460.0,0.00024136,6]
[366290456,1750176647589,-440.0,0.00024136,6]
[366290458,1750176647598,-460.0,0.00024136,6]
[366290460,1750176647608,-151.0,0.00024136,6]
[366290462,1750176647617,-265.17162674,0.00024136,6]
[366290464,1750176647627,-460.0,0.00024136,6]
[366290466,1750176647637,-460.0,0.00024136,6]
[366290468,1750176647648,-500.0,0.00024136,6]
[366290470,1750176647657,-444.5987658,0.00024136,6]
[366290472,1750176647667,-151.0,0.00024136,6]
[366290474,1750176647677,-460.0,0.00024136,6]
[366290476,1750176647689,-421.33517862,0.00024136,6]
[366290478,1750176647705,-207.11734642,0.00024136,6]
[366290480,1750176647716,-549.85770758,0.00024136,6]
[366290482,1750176647727,-308.59621826,0.00024136,6]
[366290484,1750176647738,-460.0,0.00024136,6]
[366290486,1750176647748,-460.0,0.00024136,6]
[366290488,1750176647758,-460.0,0.00024136,6]
[366290490,1750176647768,-1395.71,0.00024136,6]
[366290492,1750176647779,-460.0,0.00024136,6]
[366290494,1750176647789,-460.0,0.00024136,6]
[366290496,1750176647798,-460.0,0.00024136,6]
[366290498,1750176647808,-460.0,0.00024136,6]
[366290500,1750176647818,-460.0,0.00024136,6]
[366290502,1750176647827,-460.0,0.00024136,6]
[366290504,1750176647836,-460.0,0.00024136,6]
[366290506,1750176647846,-639.5,0.00024136,6]
[366290508,1750176647855,-460.0,0.00024136,6]
[366290510,1750176647865,-460.0,0.00024136,6]
[366290512,1750176647876,-453.70154449,0.00024136,6]
[366290514,1750176647885,-468.07,0.00024136,6]
[366290516,1750176647895,-527.27497848,0.00024136,6]
[366290518,1750176647905,-460.0,0.00024136,6]
[366290520,1750176647914,-460.0,0.00024136,6]
[366290522,1750176647924,-460.0,0.00024136,6]
[366290524,1750176647934,-460.0,0.00024136,6]
[366290526,1750176647945,-460.0,0.00024136,6]
[366290528,1750176647955,-460.0,0.00024136,6]
[366290530,1750176647964,-1661.75,0.00024136,6]
[366290532,1750176647975,-460.0,0.00024136,6]
[366290534,1750176647985,-460.0,0.00024136,6]
[366290536,1750176647995,-460.0,0.00024136,6]
[366290538,1750176648004,-460.0,0.00024136,6]
[366290540,1750176648014,-413.78822105,0.00024136,6]
[366290542,1750176648024,-460.0,0.00024136,6]
[366290544,1750176648034,-460.0,0.00024136,6]
[366290546,1750176648043,-335.54076188,0.00024136,2]
[366290548,1750176648053,-548.12663295,0.00024136,6]
[366290550,1750176648063,-460.0,0.00024136,6]
[366290552,1750176648073,-278.16670904,0.00024136,6]
[366290554,1750176648083,-460.0,0.00024136,6]
[366290556,1750176648093,-460.0,0.00024136,6]
[366290558,1750176648103,-152.17968508,0.00024136,6]
[366290560,1750176648112,-460.0,0.00024136,6]
[366290562,1750176648122,-460.0,0.00024136,6]
[366290564,1750176648133,-460.0,0.00024136,6]
[366290566,1750176648143,-529.15865952,0.00024136,6]
[366290568,1750176648153,-460.0,0.00024136,6]
[366290570,1750176648163,-460.0,0.00024136,6]
[366290572,1750176648174,-460.0,0.00024136,6]
[366290574,1750176648184,-460.0,0.00024136,6]
[366290576,1750176648197,-460.0,0.00024136,6]
[366290577,1750176648208,-460.0,0.00024136,6]
[366290579,1750176648219,-460.0,0.00024136,6]
[366290581,1750176648230,-460.0,0.00024136,6]
[366290583,1750176648241,-460.0,0.00024136,6]
[366290585,1750176648252,-460.0,0.00024136,6]
[366290587,1750176648263,-460.0,0.00024136,6]
[366290589,1750176648274,-460.0,0.00024136,6]
[366290591,1750176648284,-606.63,0.00024136,6]
[366290593,1750176648294,-460.0,0.00024136,6]
[366290595,1750176648304,-460.0,0.00024136,6]
[366290597,1750176648315,-460.0,0.00024136,6]
[366290599,1750176648326,-678.42,0.00024136,6]
[366290601,1750176648336,-460.0,0.00024136,6]
[366290603,1750176648346,-460.0,0.00024136,6]
[366290605,1750176648356,-460.0,0.00024136,6]
[366290607,1750176648367,-460.0,0.00024136,6]
[366290609,1750176648378,-460.0,0.00024136,6]
[366290611,1750176648389,-160.06732633,0.00024136,6]
[366290613,1750176648400,-460.0,0.00024136,6]
[366290615,1750176648411,-460.0,0.00024136,6]
[366290617,1750176648421,-500.0,0.00024136,6]
[366290620,1750176648431,-460.0,0.00024136,6]
[366290621,1750176648443,-460.0,0.00024136,6]
[366290623,1750176648454,-460.0,0.00024136,6]
[366290625,1750176648464,-460.0,0.00024136,6]
[366290627,1750176648474,-460.0,0.00024136,6]
[366290629,1750176648484,-460.0,0.00024136,6]
[366290631,1750176648494,-568.9505723,0.00024136,6]
[366290633,1750176648504,-461.0,0.00024136,6]
[366290635,1750176648514,-460.0,0.00024136,6]
[366290637,1750176648524,-460.0,0.00024136,6]
[366290639,1750176648534,-682.65,0.00024136,6]
[366290641,1750176648546,-460.0,0.00024136,6]
[366290643,1750176648557,-422.34541584,0.00024136,6]
[366290645,1750176648567,-460.0,0.00024136,6]
[366290647,1750176648577,-460.0,0.00024136,6]
[366290649,1750176648587,-460.0,0.00024136,6]
[366290651,1750176648597,-460.0,0.00024136,6]
[366290653,1750176648608,-357.84091838,0.00024136,6]
[366290655,1750176648617,-295.4188828,0.00024136,6]
[366290657,1750176648628,-460.0,0.00024136,6]
[366290659,1750176648638,-460.0,0.00024136,6]
[366290661,1750176648648,-460.0,0.00024136,6]
[366290663,1750176648658,-460.0,0.00024136,6]
[366290665,1750176648668,-460.0,0.00024136,6]
[366290667,1750176648678,-460.0,0.00024136,6]
[366290669,1750176648690,-460.0,0.00024136,6]
[366290671,1750176648702,-460.0,0.00024136,6]
[366290673,1750176648713,-460.0,0.00024136,6]
[366290675,1750176648723,-500.0,0.00024136,6]
[366290677,1750176648734,-460.0,0.00024136,6]
[366290679,1750176648746,-460.0,0.00024136,6]
[366290681,1750176648756,-460.0,0.00024136,6]
[366290683,1750176648766,-460.0,0.00024136,6]
[366290685,1750176648776,-1722.0,0.00024136,6]
[366290686,1750176648787,-460.0,0.00024136,6]
[366290689,1750176648797,-460.0,0.00024136,6]
[366290691,1750176648807,-460.0,0.00024136,6]
[366290697,1750176648857,-460.0,0.00024136,6]
[366290699,1750176648867,-460.0,0.00024136,6]
[366290700,1750176648877,-460.0,0.00024136,6]
[366290702,1750176648887,-460.0,0.00024136,6]
[366290704,1750176648897,-923.15,0.00024136,6]
[366290706,1750176648906,-442.39562979,0.00024136,6]
[366290708,1750176648915,-460.0,0.00024136,6]
[366290711,1750176648924,-531.7,0.00024136,6]
[366290713,1750176648934,-460.0,0.00024136,6]
[366290714,1750176648947,-460.0,0.00024136,6]
[366290716,1750176648957,-460.0,0.00024136,6]
[366290718,1750176648967,-460.0,0.00024136,6]
[366290720,1750176648977,-460.0,0.00024136,6]
[366290722,1750176648987,-594.56,0.00024136,6]
[366290724,1750176648997,-460.0,0.00024136,6]
[366290726,1750176649007,-714.63,0.00024136,6]
[366290728,1750176649017,-179.02805812,0.00024136,6]
[366290730,1750176649027,-460.0,0.00024136,6]
[366290732,1750176649037,-460.0,0.00024136,6]
[366290735,1750176649048,-460.0,0.00024136,6]
[366290736,1750176649059,-3839.88,0.00024136,6]
[366290738,1750176649069,-460.0,0.00024136,6]
[366290740,1750176649080,-460.0,0.00024136,6]
[366290742,1750176649090,-460.0,0.00024136,6]
[366290744,1750176649099,-556.31,0.00024136,6]
[366290746,1750176649109,-460.0,0.00024136,6]
[366290748,1750176649119,-460.0,0.00024136,6]
[366290750,1750176649129,-460.0,0.00024136,6]
[366290752,1750176649139,-460.0,0.00024136,6]
[366290754,1750176649149,-2366.84,0.00024136,6]
[366290756,1750176649160,-460.0,0.00024136,6]
[366290758,1750176649170,-440.0,0.00024136,6]
[366290760,1750176649180,-460.0,0.00024136,6]
[366290762,1750176649192,-576.83,0.00024136,6]
[366290764,1750176649202,-460.0,0.00024136,6]
[366290766,1750176649211,-460.0,0.00024136,6]
[366290768,1750176649221,-460.0,0.00024136,6]
[366290770,1750176649231,-1463.04,0.00024136,6]
[366290772,1750176649241,-460.0,0.00024136,6]
[366290774,1750176649251,-460.0,0.00024136,6]
[366290776,1750176649261,-460.0,0.00024136,6]
[366290777,1750176649271,-2159.55,0.00024136,6]
[366290778,1750176649281,-708.47,0.00024136,6]
[366290779,1750176649290,-460.0,0.00024136,6]
[366290780,1750176649300,-460.0,0.00024136,6]
[366290781,1750176649310,-460.0,0.00024136,6]
[366290782,1750176649319,-556.57,0.00024136,6]
[366290783,1750176649329,-685.49,0.00024136,6]
[366290784,1750176649339,-460.0,0.00024136,6]
[366290785,1750176649349,-460.0,0.00024136,6]
[366290787,1750176649359,-1333.9,0.00024136,6]
[366290789,1750176649369,-460.0,0.00024136,6]
[366290791,1750176649379,-460.0,0.00024136,6]
[366290793,1750176649389,-1441.24,0.00024136,6]
[366290795,1750176649400,-407.62562123,0.00024136,6]
[366290797,1750176649410,-550.06280907,0.00024136,6]
[366290799,1750176649419,-460.0,0.00024136,6]
[366290801,1750176649429,-1158.18,0.00024136,6]
[366290803,1750176649443,-460.0,0.00024136,6]
[366290805,1750176649454,-460.0,0.00024136,6]
[366290807,1750176649464,-460.0,0.00024136,6]
[366290809,1750176649474,-522.07,0.00024136,6]
[366290811,1750176649484,-358.67853999,0.00024136,6]
[366290813,1750176649494,-460.0,0.00024136,6]
[366290815,1750176649504,-460.0,0.00024136,6]
[366290817,1750176649514,-460.0,0.00024136,6]
[366290819,1750176649524,-460.0,0.00024136,6]
[366290821,1750176649534,-460.0,0.00024136,6]
[366290823,1750176649545,-460.0,0.00024136,6]